bitfinex/quotes_SOLUSD_20250806
["timestamp","ask_amount","ask_price","bid_price","bid_amount"]
[1754506103762,0.03,168.84,168.83,6.42425614]
[1754506104066,0.03,168.84,168.83,12.34737406]
[1754506104766,0.03,168.86,168.84,15.39053871]
[1754506105075,0.03,168.86,168.85,22.02047171]
[1754506106081,0.03,168.86,168.85,27.94288805]
[1754506106775,0.03,168.86,168.85,27.45288805]
[1754506108076,0.74,168.86,168.85,6.20673948]
[1754506108281,0.74,168.86,168.85,12.34667248]
[1754506108778,0.74,168.86,168.84,15.10621557]
[1754506108779,0.74,168.86,168.84,5.92276326]
[1754506108952,0.74,168.86,168.83,5.92297518]
[1754506109277,0.74,168.86,168.84,0.28432314]
[1754506110072,0.74,168.86,168.85,6.20673948]
[1754506110268,0.74,168.86,168.85,0.28432314]
[1754506110463,0.03,168.86,168.85,0.28432314]
[1754506110850,0.74,168.86,168.85,0.28432314]
[1754506111356,0.03,168.86,168.85,6.42425614]
[1754506111569,0.03,168.86,168.85,0.28432314]
[1754506111974,0.03,168.86,168.85,6.20673948]
[1754506115767,0.03,168.86,168.85,12.34667248]
[1754506115974,0.03,168.86,168.81,15.10621557]
[1754506116273,0.74,168.86,168.82,0.28432314]
[1754506116485,6.879933,168.86,168.81,26.87295246]
[1754506116664,6.849933,168.85,168.81,5.92381967]
[1754506116884,6.139933,168.85,168.82,0.14216157]
[1754506117182,6.849933,168.84,168.81,5.92381967]
[1754506117384,0.71,168.83,168.81,5.92381967]
[1754506117565,47.719933,168.84,168.81,5.92381967]
[1754506117759,47.719933,168.84,168.8,5.92417061]
[1754506118068,47.719933,168.84,168.81,0.28432314]
[1754506118380,0.71,168.83,168.81,0.28432314]
[1754506118580,47.719933,168.84,168.81,0.28432314]
[1754506118781,0.71,168.82,168.81,0.28432314]
[1754506118973,42.29,168.84,168.81,0.28432314]
[1754506119282,41.58,168.84,168.81,0.28432314]
[1754506119464,0.71,168.83,168.81,0.28432314]
[1754506119671,41.58,168.84,168.83,0.28432314]
[1754506119870,42.29,168.84,168.83,0.28432314]
[1754506120791,41.58,168.84,168.83,0.28432314]
[1754506121260,42.29,168.84,168.83,0.28432314]
[1754506121789,42.29,168.84,168.83,6.20744106]
[1754506122283,41.58,168.84,168.83,6.20744106]
[1754506122594,145.9,168.85,168.83,12.83737406]
[1754506122792,145.9,168.85,168.84,6.42425614]
[1754506122963,145.9,168.85,168.84,0.28432314]
[1754506123578,41.59,168.86,168.84,6.42425614]
[1754506123784,41.59,168.86,168.85,6.139933]
[1754506123967,0.03,168.86,168.85,12.06234934]
[1754506124167,0.03,168.86,168.85,12.34667248]
[1754506126885,0.03,168.86,168.85,6.20673948]
[1754506128699,0.03,168.86,168.85,12.34667248]
[1754506129391,0.73,168.86,168.85,6.20673948]
[1754506134181,0.73,168.86,168.84,5.98272913]
[1754506135098,6.869933,168.86,168.84,0.06]
[1754506135316,6.139933,168.85,168.84,0.06]
[1754506135493,6.839933,168.85,168.84,0.06]
[1754506139592,152.739933,168.85,168.84,0.06]
[1754506140204,146.6,168.85,168.84,0.06]
[1754506141509,152.739933,168.85,168.84,0.06]
[1754506143430,156.67269208,168.85,168.84,0.06]
[1754506145022,150.53275908,168.85,168.84,0.06]
[1754506145228,156.67269208,168.85,168.84,0.06]
[1754506147423,198.21269208,168.85,168.84,0.06]
[1754506148599,52.31269208,168.85,168.84,0.06]
[1754506150229,52.34269208,168.85,168.84,0.06]
[1754506154914,58.26510842,168.85,168.84,0.06]
[1754506155307,52.34269208,168.85,168.84,0.06]
[1754506155515,0.03,168.85,168.84,6.97425614]
[1754506157530,0.03,168.85,168.84,12.89702325]
[1754506160807,0.03,168.86,168.84,28.00323882]
[1754506161015,0.03,168.86,168.85,6.629933]
[1754506161520,1e-08,168.86,168.85,22.02047171]
[1754506161716,1e-08,168.88,168.86,15.39053871]
[1754506162034,1e-08,168.88,168.87,21.53047171]
[1754506162217,0.2,168.91,168.88,15.39053871]
[1754506162407,0.2,168.91,168.9,6.42425614]
[1754506163928,0.2,168.91,168.9,12.34491925]
[1754506164429,0.2,168.91,168.9,12.83491925]
[1754506164944,0.2,168.91,168.9,27.94113482]
[1754506165905,0.2,168.91,168.9,12.83491925]
[1754506166111,1e-08,168.91,168.9,34.08106782]
[1754506167241,1e-08,168.91,168.9,75.60106782]
[1754506168523,1e-08,168.91,168.9,69.46113482]
[1754506169438,1e-08,168.91,168.9,27.94113482]
[1754506169737,1e-08,168.91,168.9,6.06282468]
[1754506169912,0.70000001,168.91,168.9,12.06059611]
[1754506170117,0.70000001,168.91,168.9,5.92066311]
[1754506170740,0.70000001,168.91,168.9,6.20498625]
[1754506171150,0.70000001,168.91,168.9,5.92066311]
[1754506171923,6.83993301,168.91,168.9,5.92066311]
[1754506172238,0.70000001,168.91,168.88,20.72475275]
[1754506173825,1e-08,168.91,168.88,20.72475275]
[1754506174039,0.7,168.9,168.88,20.72475275]
[1754506174636,0.7,168.89,168.88,21.00907589]
[1754506175835,0.70000001,168.91,168.88,21.00907589]
[1754506176966,1e-08,168.91,168.88,21.00907589]
[1754506177138,0.7,168.9,168.88,21.00907589]
[1754506180146,1e-08,168.91,168.88,21.00907589]
[1754506180531,0.70000001,168.91,168.88,21.00907589]
[1754506180753,1e-08,168.91,168.9,5.92066311]
[1754506181657,0.70000001,168.91,168.9,5.92066311]
[1754506181973,6.83993301,168.91,168.9,5.92066311]
[1754506182937,0.70000001,168.91,168.89,6.20533681]
[1754506184468,1e-08,168.91,168.89,6.20533681]
[1754506184643,0.7,168.9,168.89,6.20533681]
[1754506186361,0.7,168.9,168.85,0.49]
[1754506186362,6.839933,168.9,168.85,56.32594965]
[1754506186562,6.139933,168.88,168.86,5.92206561]
[1754506186769,0.7,168.87,168.86,5.92206561]
[1754506187063,6.139933,168.88,168.86,5.92206561]
[1754506187357,6.839933,168.88,168.86,5.92206561]
[1754506187563,6.139933,168.88,168.86,5.92206561]
[1754506187764,0.7,168.87,168.86,5.92206561]
[1754506188454,6.139933,168.89,168.85,6.06457791]
[1754506188658,0.7,168.88,168.85,6.06457791]
[1754506188859,6.139933,168.89,168.85,6.06457791]
[1754506189166,6.819933,168.89,168.85,6.06457791]
[1754506189540,0.68,168.88,168.85,6.06457791]
[1754506189757,6.819933,168.88,168.85,6.06457791]
[1754506190266,6.139933,168.88,168.85,6.06457791]
[1754506190443,0.68,168.87,168.85,6.06457791]
[1754506190843,0.68,168.87,168.85,5.92241634]
[1754506196161,6.819933,168.86,168.85,5.92241634]
[1754506197450,6.819933,168.86,168.84,0.06]
[1754506197682,6.819933,168.85,168.84,0.06]
[1754506197852,0.68,168.85,168.84,0.06]
[1754506198494,6.819933,168.87,168.84,0.06]
[1754506198781,152.039933,168.88,168.84,0.34432314]
[1754506198963,0.68,168.87,168.84,0.34432314]
[1754506199156,6.819933,168.87,168.84,0.34432314]
[1754506199347,0.68,168.87,168.84,0.34432314]
[1754506199549,152.039933,168.88,168.85,5.92241634]
[1754506199756,0.68,168.87,168.85,5.92241634]
[1754506200446,152.039933,168.88,168.85,5.92241634]
[1754506200648,145.9,168.88,168.85,5.92241634]
[1754506200844,145.9,168.88,168.85,6.41241634]
[1754506201261,146.58,168.88,168.85,5.92241634]
[1754506203274,145.9,168.88,168.85,21.2184572]
[1754506204284,146.58,168.88,168.85,20.7284572]
[1754506204456,145.9,168.88,168.85,20.7284572]
[1754506204656,0.68,168.87,168.85,20.7284572]
[1754506205379,145.9,168.88,168.85,20.7284572]
[1754506205879,146.58,168.88,168.85,20.7284572]
[1754506206948,0.68,168.87,168.85,20.7284572]
[1754506207351,145.9,168.88,168.85,20.7284572]
[1754506207551,146.58,168.88,168.85,20.7284572]
[1754506208177,145.9,168.88,168.85,20.7284572]
[1754506208381,0.68,168.87,168.85,20.7284572]
[1754506208579,0.68,168.86,168.85,20.7284572]
[1754506209176,0.68,168.86,168.85,5.92241634]
[1754506213574,0.68,168.86,168.84,0.06]
[1754506215298,0.68,168.87,168.84,0.06]
[1754506216010,152.039933,168.88,168.84,0.06]
[1754506216183,0.68,168.86,168.84,0.06]
[1754506218606,0.68,168.85,168.84,0.06]
[1754506219598,6.819933,168.85,168.84,0.06]
[1754506220099,6.809933,168.85,168.84,0.06]
[1754506221396,0.67,168.85,168.84,0.06]
[1754506228778,6.139933,168.86,168.84,0.06]
[1754506229099,152.709933,168.88,168.84,0.55]
[1754506229528,146.57,168.88,168.84,6.689933]
[1754506229810,145.9,168.88,168.85,6.139933]
[1754506229984,0.67,168.87,168.84,0.34432314]
[1754506230685,0.67,168.87,168.85,5.92241634]
[1754506232409,146.57,168.88,168.85,5.92241634]
[1754506233423,0.67,168.87,168.85,5.92241634]
[1754506233619,152.04432921,168.88,168.85,5.92241634]
[1754506233831,0.67,168.86,168.85,5.92241634]
[1754506235708,146.57,168.88,168.85,5.92241634]
[1754506235900,152.04432921,168.88,168.85,5.92241634]
[1754506236412,145.9,168.88,168.85,5.92241634]
[1754506237015,146.57,168.88,168.85,5.92241634]
[1754506237327,0.67,168.87,168.85,5.92241634]
[1754506237523,0.67,168.86,168.85,5.92241634]
[1754506242142,0.67,168.86,168.84,5.98266796]
[1754506242143,6.81432921,168.86,168.84,5.98266796]
[1754506242330,6.81432921,168.85,168.84,5.98266796]
[1754506243316,0.67,168.85,168.84,5.98266796]
[1754506243919,0.67,168.85,168.84,0.06]
[1754506244721,5.05305218,168.85,168.84,0.06]
[1754506245530,4.38305218,168.85,168.84,0.06]
[1754506246452,4.38372278,168.85,168.84,0.06]
[1754506246656,4.38372278,168.85,168.84,6.97865235]
[1754506247155,3.94616306,168.89,168.84,6.97865235]
[1754506247358,4.38479996,168.88,168.86,6.14432921]
[1754506247558,4.38479996,168.87,168.86,6.63432921]
[1754506247756,4.38479996,168.87,168.85,6.14432921]
[1754506247938,4.38479996,168.86,168.85,6.20673948]
[1754506249451,4.38479996,168.86,168.85,12.35106869]
[1754506251546,4.38479996,168.86,168.85,6.20673948]
[1754506251860,4.38479996,168.86,168.85,12.35106869]
[1754506254551,5.07479996,168.86,168.85,5.92241634]
[1754506255352,5.07479996,168.86,168.84,5.98276711]
[1754506255555,5.07479996,168.85,168.84,5.98276711]
[1754506255946,4.38479996,168.85,168.84,5.98276711]
[1754506258351,5.07479996,168.85,168.84,5.98276711]
[1754506259861,0.89035796,168.85,168.84,5.98276711]
[1754506260060,0.69,168.85,168.84,5.98276711]
[1754506260242,4.63866646,168.88,168.84,26.93401411]
[1754506260435,4.63866646,168.88,168.84,27.42401411]
[1754506260436,0.69,168.88,168.84,27.42401411]
[1754506260830,0.69,168.87,168.84,20.7896849]
[1754506261036,0.69,168.86,168.84,20.7896849]
[1754506261661,4.63799969,168.88,168.84,26.93401411]
[1754506262146,0.69,168.87,168.84,26.93401411]
[1754506264259,0.69,168.87,168.84,20.7896849]
[1754506264467,0.69,168.87,168.84,26.93401411]
[1754506266956,0.69,168.87,168.84,26.93401411]
[1754506269072,0.69,168.87,168.84,27.42401411]
[1754506269454,0.69,168.88,168.84,27.42401411]
[1754506269651,4.63990729,168.88,168.84,27.42401411]
[1754506270672,4.63990729,168.88,168.84,25.21175903]
[1754506270852,3.94990729,168.88,168.85,4.70639727]
[1754506271262,4.63990729,168.88,168.85,4.21639727]
[1754506271457,0.69,168.87,168.85,0.28432314]
[1754506272873,0.69,168.87,168.86,5.92206561]
[1754506273848,3.94990729,168.88,168.86,5.92206561]
[1754506274048,4.63990729,168.88,168.86,5.92206561]
[1754506278286,0.69,168.87,168.86,5.92206561]
[1754506278777,4.68990729,168.88,168.86,5.92206561]
[1754506281383,3.97990729,168.88,168.86,5.92206561]
[1754506281681,3.97990729,168.88,168.87,0.28432314]
[1754506281881,0.03,168.88,168.87,22.02483384]
[1754506282101,1e-08,168.88,168.87,22.02483384]
[1754506283085,1e-08,168.88,168.87,12.35033319]
[1754506284680,1e-08,168.88,168.87,12.84033319]
[1754506285089,1e-08,168.88,168.87,6.69603806]
[1754506285287,1e-08,168.88,168.87,12.84033319]
[1754506285485,1e-08,168.88,168.87,12.35033319]
[1754506286402,1e-08,168.88,168.87,53.94654876]
[1754506286984,1e-08,168.91,168.9,0.28432314]
[1754506287203,1e-08,168.91,168.9,32.42861827]
[1754506287401,1e-08,168.91,168.9,48.02483384]
[1754506288288,1e-08,168.91,168.9,53.94549695]
[1754506290700,1e-08,168.91,168.9,101.52979208]
[1754506291008,1e-08,168.91,168.9,94.89549695]
[1754506294694,1e-08,168.91,168.9,92.67923099]
[1754506295592,0.71000001,168.91,168.9,6.06282468]
[1754506295785,0.71000001,168.91,168.9,5.92066311]
[1754506296715,0.71000001,168.91,168.89,6.20533681]
[1754506296890,0.71000001,168.91,168.89,5.92101367]
[1754506297213,4.63802918,168.91,168.89,5.92101367]
[1754506297509,4.63802917,168.9,168.85,5.92241634]
[1754506297710,4.63802917,168.89,168.85,5.92241634]
[1754506298008,3.92802917,168.86,168.84,0.06]
[1754506298213,3.92802917,168.86,168.84,5.98268357]
[1754506298379,0.71,168.85,168.84,5.98268357]
[1754506298780,0.71,168.85,168.84,0.06]
[1754506302935,6.85628366,168.85,168.84,0.06]
[1754506303286,6.14628366,168.85,168.84,0.06]
[1754506303492,6.85628366,168.85,168.84,0.06]
[1754506303802,0.71,168.85,168.84,0.06]
[1754506304931,41.44,168.86,168.84,0.06]
[1754506305601,42.15,168.86,168.84,0.06]
[1754506305839,0.71,168.86,168.84,0.06]
[1754506306198,0.71,168.88,168.84,6.20628366]
[1754506306406,0.71,168.87,168.84,6.20628366]
[1754506306912,0.71,168.87,168.85,5.92241634]
[1754506307419,42.15,168.89,168.85,26.87474086]
[1754506307620,0.71,168.88,168.85,26.87474086]
[1754506308820,0.71,168.88,168.86,6.14628366]
[1754506309033,0.68,168.9,168.87,6.14628366]
[1754506310434,1e-08,168.91,168.89,6.14628366]
[1754506310597,1e-08,168.91,168.9,21.53682237]
[1754506310803,1e-08,168.91,168.9,22.02682237]
[1754506310998,1e-08,168.91,168.9,21.53682237]
[1754506311215,0.68000001,168.91,168.9,0.28432314]
[1754506311419,0.68000001,168.91,168.9,6.4306068]
[1754506311612,1e-08,168.91,168.9,6.4306068]
[1754506312421,1e-08,168.91,168.9,27.94748548]
[1754506312729,1e-08,168.91,168.9,34.09376914]
[1754506313114,1e-08,168.91,168.9,27.94748548]
[1754506316529,1e-08,168.91,168.9,69.38748548]
[1754506319604,1e-08,168.93,168.92,41.39053871]
[1754506319826,1e-08,168.93,168.92,88.95682237]
[1754506320130,1e-08,168.93,168.92,89.44682237]
[1754506320424,1e-08,168.93,168.92,95.36678448]
[1754506320804,1e-08,168.93,168.92,94.87678448]
[1754506321008,1e-08,168.93,168.92,95.36678448]
[1754506322435,1e-08,168.93,168.92,94.87678448]
[1754506331115,1e-08,168.93,168.92,95.36678448]
[1754506332127,1e-08,168.93,168.92,94.87678448]
[1754506332850,0.03,168.95,168.93,15.39053871]
[1754506333028,0.03,168.95,168.94,47.56628366]
[1754506333960,0.03,168.95,168.94,53.48554493]
[1754506334862,0.71,168.95,168.94,53.48554493]
[1754506341339,0.03,168.95,168.94,53.48554493]
[1754506341743,0.73,168.95,168.91,12.06659625]
[1754506341938,0.73,168.95,168.92,41.4]
[1754506342454,0.03,168.95,168.92,41.4]
[1754506342843,0.03,168.95,168.93,5.91961167]
[1754506347134,0.03,168.95,168.92,5.91996211]
[1754506347461,0.73,168.95,168.92,12.06624577]
[1754506348030,0.73,168.95,168.92,5.91996211]
[1754506348536,0.73,168.95,168.92,27.55615105]
[1754506349331,0.03,168.95,168.93,0.97432314]
[1754506349543,0.03,168.95,168.93,48.5206068]
[1754506349748,41.4,168.98,168.95,0.28432314]
[1754506350032,1e-08,169.01,168.98,0.28432314]
[1754506350231,1e-08,169.01,168.99,6.14628366]
[1754506350425,1e-08,169.01,169.0,5.91715976]
[1754506350633,1e-08,169.01,169.0,12.06344342]
[1754506350936,1e-08,169.01,169.0,12.34776656]
[1754506351139,1e-08,169.01,169.0,13.03776656]
[1754506351862,1e-08,169.01,169.0,12.34776656]
[1754506352182,0.70000001,169.01,169.0,6.2014829]
[1754506352341,1e-08,169.01,169.0,6.2014829]
[1754506355566,1e-08,169.01,169.0,12.34776656]
[1754506355770,1e-08,169.01,169.0,53.74776656]
[1754506356335,1e-08,169.01,169.0,47.6014829]
[1754506356540,0.70000001,169.01,169.0,47.6014829]
[1754506357261,1e-08,169.01,169.0,48.2914829]
[1754506357457,1e-08,169.01,169.0,54.43776656]
[1754506359077,1e-08,169.01,169.0,53.74776656]
[1754506359274,6.84628367,169.01,169.0,5.91715976]
[1754506359660,0.70000001,169.01,169.0,5.91715976]
[1754506360074,1e-08,169.01,169.0,5.91715976]
[1754506360668,0.70000001,169.01,169.0,5.91715976]
[1754506361252,0.70000001,169.01,168.99,5.91750991]
[1754506361662,1e-08,169.01,168.99,5.91750991]
[1754506362487,1e-08,169.01,168.99,47.98750991]
[1754506362901,1e-08,169.01,169.0,0.69]
[1754506363188,0.70000001,169.01,169.0,5.91715976]
[1754506365961,1e-08,169.01,169.0,6.60715976]
[1754506366493,1e-08,169.01,169.0,5.91715976]
[1754506366668,1e-08,169.01,169.0,6.60715976]
[1754506366868,1e-08,169.01,169.0,5.91715976]
[1754506367879,0.70000001,169.01,169.0,5.91715976]
[1754506369495,0.68000001,169.01,169.0,5.91715976]
[1754506372295,1e-08,169.01,169.0,5.91715976]
[1754506375006,0.68000001,169.01,169.0,5.91715976]
[1754506376199,1e-08,169.01,169.0,5.91715976]
[1754506377997,0.68000001,169.01,169.0,5.91715976]
[1754506378197,0.68000001,169.01,168.99,41.38]
[1754506378198,6.82628367,169.01,168.96,5.9185606]
[1754506378411,6.14628366,168.97,168.96,47.2985606]
[1754506378588,6.14628366,168.97,168.96,5.9185606]
[1754506378784,6.82628366,168.97,168.96,5.9185606]
[1754506379498,6.82628366,168.97,168.95,6.26323406]
[1754506379689,6.14628366,168.97,168.95,6.26323406]
[1754506380585,0.68,168.99,168.95,6.26323406]
[1754506380785,6.14628366,168.97,168.95,6.26323406]
[1754506381499,6.82628366,168.97,168.95,6.26323406]
[1754506381899,6.82628366,168.96,168.95,5.97891092]
[1754506382122,6.82628366,168.96,168.95,0.06]
[1754506382918,0.68,168.96,168.95,0.06]
[1754506383097,6.82628366,168.96,168.95,0.06]
[1754506389453,6.14628366,168.96,168.95,0.06]
[1754506389610,0.03,168.97,168.95,0.73]
[1754506389935,6.14628366,168.96,168.95,0.06]
[1754506390113,0.03,168.97,168.95,0.73]
[1754506390314,6.17628366,168.97,168.96,0.67]
[1754506390519,0.03,168.97,168.96,0.67]
[1754506390924,6.17628366,168.97,168.96,0.67]
[1754506391211,6.17628366,168.97,168.95,0.06]
[1754506391537,6.85628366,168.97,168.95,0.06]
[1754506392337,6.17628366,168.97,168.95,0.06]
[1754506392531,0.03,168.97,168.95,0.06]
[1754506392740,6.17628366,168.97,168.95,0.06]
[1754506393240,6.82628366,168.96,168.95,0.06]
[1754506393544,6.14628366,168.96,168.95,0.06]
[1754506394116,6.17628366,168.97,168.95,0.73]
[1754506395618,6.17628366,168.97,168.96,5.9185606]
[1754506396237,0.03,168.97,168.96,5.9185606]
[1754506397775,0.03,168.97,168.95,5.97891092]
[1754506398356,0.71,168.97,168.95,5.97891092]
[1754506398556,6.17628366,168.97,168.95,5.97891092]
[1754506398753,6.82628366,168.96,168.95,0.06]
[1754506403046,10.75224008,168.96,168.95,0.06]
[1754506403984,16.67080068,168.96,168.95,0.06]
[1754506404966,10.75224008,168.96,168.95,0.06]
[1754506405276,6.82628366,168.96,168.95,0.06]
[1754506407361,12.74484426,168.96,168.95,0.06]
[1754506407573,16.66809436,168.96,168.95,0.06]
[1754506407778,16.66809436,168.96,168.93,0.06]
[1754506408087,6.14628366,168.94,168.93,0.06]
[1754506408244,47.52628366,168.94,168.93,0.06]
[1754506408546,48.20628366,168.94,168.93,0.06]
[1754506413147,58.04641426,168.94,168.93,0.06]
[1754506413765,64.68742726,168.94,168.93,0.06]
[1754506414265,58.04641426,168.94,168.93,0.06]
[1754506414964,60.41910526,168.94,168.93,0.06]
[1754506416358,58.04641426,168.94,168.93,0.06]
[1754506417860,54.12554493,168.94,168.93,0.06]
[1754506419375,58.04496956,168.94,168.93,0.06]
[1754506422182,16.66496956,168.94,168.93,0.06]
[1754506422492,58.04496956,168.94,168.93,0.06]
[1754506423186,64.68582156,168.94,168.93,0.06]
[1754506424084,105.79203713,168.94,168.93,0.06]
[1754506424457,26.0,168.92,168.91,0.06]
[1754506424653,77.44570829,168.92,168.91,0.06]
[1754506424893,78.12570829,168.92,168.91,0.06]
[1754506425188,84.04777429,168.92,168.91,0.06]
[1754506425563,78.12570829,168.92,168.91,0.06]
[1754506425886,84.0456704,168.92,168.91,0.06]
[1754506426386,84.0456704,168.92,168.84,20.78950305]
[1754506426387,105.29816963,168.92,168.84,5.98276711]
[1754506426589,6.14628366,168.9,168.84,0.06]
[1754506426753,6.14628366,168.85,168.84,0.06]
[1754506426959,47.52628366,168.85,168.84,0.06]
[1754506427302,47.52628366,168.85,168.84,0.78]
[1754506427492,48.20628366,168.85,168.84,0.06]
[1754506429390,54.1287,168.85,168.84,0.06]
[1754506429695,58.04394911,168.85,168.83,0.06]
[1754506429894,10.75153277,168.84,168.83,0.06]
[1754506431180,27.86526634,168.84,168.82,0.06]
[1754506431385,48.21628366,168.83,168.82,0.06]
[1754506432592,54.13940158,168.83,168.82,0.06]
[1754506433366,80.13940158,168.83,168.82,0.06]
[1754506433574,80.13940158,168.83,168.81,0.06]
[1754506433901,6.83628366,168.82,168.81,0.06]
[1754506434198,6.14628366,168.82,168.81,0.06]
[1754506435896,12.85113666,168.82,168.81,0.06]
[1754506436077,12.85113666,168.82,168.81,0.74]
[1754506436993,12.85113666,168.82,168.81,0.06]
[1754506441814,12.85113666,168.82,168.81,0.74]
[1754506441815,6.14628366,168.82,168.81,0.74]
[1754506442822,47.54628366,168.82,168.81,0.74]
[1754506442984,41.4,168.82,168.81,0.74]
[1754506443397,47.54628366,168.82,168.81,0.74]
[1754506443591,47.54628366,168.82,168.81,6.66381967]
[1754506444185,47.54628366,168.82,168.81,1.02432314]
[1754506444384,47.54628366,168.82,168.81,0.34432314]
[1754506444830,47.54628366,168.82,168.81,0.06]
[1754506445014,48.23628366,168.82,168.81,0.06]
[1754506446194,47.54628366,168.82,168.81,0.06]
[1754506446401,48.23628366,168.82,168.81,0.06]
[1754506447912,54.15975244,168.82,168.81,0.06]
[1754506449402,48.23628366,168.82,168.81,0.06]
[1754506454296,6.14628366,168.82,168.81,0.74]
[1754506454527,47.54628366,168.82,168.81,0.06]
[1754506455700,47.54628366,168.82,168.81,0.74]
[1754506456118,47.57628366,168.82,168.81,0.74]
[1754506457414,47.57628366,168.82,168.81,0.06]
[1754506464308,6.88628366,168.82,168.81,0.06]
[1754506464501,48.28628366,168.82,168.81,0.06]
[1754506464919,54.20975244,168.82,168.81,0.06]
[1754506465339,48.28628366,168.82,168.81,0.06]
[1754506467113,54.20975244,168.82,168.81,0.06]
[1754506467313,58.13080629,168.82,168.81,0.06]
[1754506470112,52.20733751,168.82,168.81,0.06]
[1754506470513,46.06105385,168.82,168.81,0.06]
[1754506470834,52.20733751,168.82,168.81,0.06]
[1754506478330,51.49733751,168.82,168.81,0.75]
[1754506478526,45.35105385,168.82,168.81,0.75]
[1754506478731,51.49733751,168.82,168.81,0.75]
[1754506479617,10.09733751,168.82,168.81,0.75]
[1754506479820,51.49733751,168.82,168.81,0.75]
[1754506480036,45.35105385,168.82,168.81,0.75]
[1754506480238,45.35105385,168.82,168.81,1.03432314]
[1754506480628,45.35105385,168.82,168.81,6.95814281]
[1754506481546,51.49733751,168.82,168.81,6.95814281]
[1754506482377,45.35105385,168.82,168.81,6.95814281]
[1754506482519,3.95105385,168.82,168.81,13.10442647]
[1754506482720,0.03,168.82,168.81,13.10442647]
[1754506484338,3.96788294,168.84,168.81,28.21064204]
[1754506484545,0.03,168.84,168.83,6.4306068]
[1754506484728,0.03,168.84,168.83,7.1206068]
[1754506486044,0.03,168.84,168.83,13.04372472]
[1754506487642,0.03,168.84,168.83,13.04372472]
[1754506489259,0.03,168.84,168.83,13.07372472]
[1754506496664,0.03,168.84,168.83,6.92744106]
[1754506496860,0.73,168.84,168.83,12.35372472]
[1754506497062,0.73,168.84,168.83,0.14216157]
[1754506497252,0.73,168.84,168.83,6.06527949]
[1754506497458,0.73,168.84,168.82,5.92333476]
[1754506497667,0.73,168.84,168.83,0.28432314]
[1754506497967,0.73,168.84,168.83,0.14216157]
[1754506498167,42.11,168.84,168.83,0.28432314]
[1754506499763,41.41,168.84,168.83,6.20744106]
[1754506499968,42.11,168.84,168.83,0.28432314]
[1754506500276,42.11,168.84,168.83,0.14216157]
[1754506500441,0.03,168.84,168.83,13.07372472]
[1754506502156,0.03,168.86,168.84,15.39053871]
[1754506502373,0.03,168.86,168.85,21.53682237]
[1754506502570,0.03,168.86,168.85,22.25682237]
[1754506503076,0.03,168.86,168.85,12.35302314]
[1754506509893,0.03,168.86,168.85,13.07302314]
[1754506510306,0.03,168.86,168.85,12.35302314]
[1754506511586,0.03,168.86,168.85,0.28432314]
[1754506511784,0.73,168.86,168.85,0.28432314]
[1754506512897,0.73,168.86,168.85,6.20673948]
[1754506513078,0.03,168.86,168.85,6.20673948]
[1754506515105,0.73,168.86,168.85,6.20673948]
[1754506515597,6.87628366,168.86,168.85,0.28432314]
[1754506515808,6.87628366,168.86,168.82,0.06]
[1754506515975,6.14628366,168.83,168.82,0.06]
[1754506516313,47.50628366,168.83,168.82,0.06]
[1754506516679,48.20628366,168.83,168.82,0.06]
[1754506519391,47.98311792,168.83,168.82,0.06]
[1754506519574,52.13698495,168.83,168.82,0.06]
[1754506519900,48.20628366,168.83,168.82,0.06]
[1754506521295,52.13853467,168.83,168.82,0.06]
[1754506522282,45.99225101,168.83,168.82,0.06]
[1754506522473,52.13853467,168.83,168.82,0.06]
[1754506525210,41.36,168.83,168.82,0.06]
[1754506525509,0.03,168.84,168.82,0.75]
[1754506525708,41.39,168.84,168.82,0.06]
[1754506526323,41.39,168.84,168.82,0.75]
[1754506526813,41.39,168.84,168.83,0.28432314]